bitfinex/quotes_ETHUSD_20250223
["timestamp","ask_amount","ask_price","bid_price","bid_amount"]
[1740299209922,0.06601345,2820.0,2819.5,3.54671]
[1740299211760,0.06601345,2820.0,2819.5,7.09336]
[1740299211964,0.06601345,2820.0,2819.5,3.54665]
[1740299212138,0.06601345,2820.0,2819.5,5.29623433]
[1740299213461,0.06601345,2820.0,2819.6,3.54652]
[1740299213657,0.06601345,2820.0,2819.5,5.29623433]
[1740299215266,3.61210345,2820.0,2819.4,0.69589329]
[1740299215564,0.7918,2819.9,2819.4,0.69589329]
[1740299216065,0.0658693,2819.8,2819.4,0.69589329]
[1740299216570,0.0658693,2819.8,2819.4,4.24274329]
[1740299217149,0.0658693,2819.8,2819.4,0.69589329]
[1740299217471,3.6122893,2819.8,2819.4,0.69589329]
[1740299217659,3.54661,2819.6,2819.2,0.69589329]
[1740299217882,4.33861,2819.5,2818.7,0.69589329]
[1740299218171,3.54717,2819.2,2818.7,0.69589329]
[1740299218572,0.06572511,2819.1,2818.7,0.69589329]
[1740299219944,3.54698,2819.3,2818.7,0.69589329]
[1740299220173,0.06558093,2819.0,2818.7,0.69589329]
[1740299220366,3.54698,2819.3,2818.7,1.12026762]
[1740299220670,0.7918,2819.4,2818.8,3.54754]
[1740299221045,0.06558093,2819.3,2819.0,3.54733]
[1740299221741,0.06558093,2819.3,2818.8,0.788]
[1740299221945,4.31977,2819.2,2818.7,0.69589329]
[1740299222168,3.54726,2819.1,2818.5,1.48389329]
[1740299222355,3.54726,2819.1,2818.5,6.42506462]
[1740299222587,0.06520772,2819.0,2818.5,6.42506462]
[1740299223882,0.06520772,2819.0,2818.5,2.87708462]
[1740299224184,0.7883,2818.9,2818.5,0.69589329]
[1740299224556,0.06493627,2818.8,2818.5,0.69589329]
[1740299225286,3.61258627,2818.8,2818.2,0.83140909]
[1740299225455,0.7883,2818.5,2818.2,0.1355158]
[1740299225655,3.54818,2818.4,2818.2,0.1355158]
[1740299225851,3.54823,2818.3,2818.2,0.1355158]
[1740299226057,0.7883,2818.5,2818.2,0.1355158]
[1740299226256,0.06474114,2818.4,2818.2,0.1355158]
[1740299228289,0.29174351,2818.3,2818.2,3.6838758]
[1740299228490,0.35646768,2818.3,2818.2,3.6838758]
[1740299228688,0.35646768,2818.3,2818.2,0.1355158]
[1740299229653,0.35646768,2818.3,2818.2,3.6838758]
[1740299229857,0.35646768,2818.3,2818.2,5.20651138]
[1740299230055,0.29174351,2818.3,2818.2,5.20651138]
[1740299230451,0.7883,2818.8,2818.2,5.20651138]
[1740299230659,0.7883,2818.8,2818.2,1.65815138]
[1740299230884,0.7883,2819.0,2818.3,3.54823]
[1740299231085,0.7883,2819.0,2818.5,3.54797]
[1740299231284,0.0641811,2818.9,2818.5,3.54797]
[1740299231655,0.0641811,2818.9,2818.3,4.24412329]
[1740299231860,0.29164209,2818.8,2818.3,4.24404329]
[1740299232062,0.29164209,2818.8,2818.5,3.54796]
[1740299232791,0.0641811,2818.7,2818.5,7.09592]
[1740299232965,0.29164209,2818.8,2818.5,0.57511977]
[1740299233169,0.29164209,2818.8,2818.3,0.69589329]
[1740299233170,0.0641811,2818.6,2818.3,0.69589329]
[1740299233376,0.29164209,2818.8,2818.3,0.69589329]
[1740299233564,0.06441024,2818.5,2818.3,0.69589329]
[1740299233769,7.88397,2818.7,2818.3,0.69589329]
[1740299233965,0.06441024,2818.4,2818.3,0.69589329]
[1740299234176,0.7883,2818.4,2818.2,0.1355158]
[1740299234376,1.28635024,2818.4,2818.2,0.1355158]
[1740299234554,0.85271024,2818.4,2818.2,0.1355158]
[1740299234961,0.29146099,2818.3,2818.2,0.1355158]
[1740299235694,0.35587123,2818.3,2818.2,4.4832758]
[1740299235894,0.29146099,2818.3,2818.2,4.4832758]
[1740299237212,0.29146099,2818.3,2818.2,0.1355158]
[1740299237418,1.46371409,2818.3,2818.2,0.1355158]
[1740299237598,0.35565906,2818.3,2818.2,0.1355158]
[1740299237915,0.06419807,2818.3,2818.2,0.1355158]
[1740299238269,4.33627,2818.6,2818.2,0.1355158]
[1740299238784,0.06419807,2818.5,2818.2,0.1355158]
[1740299238985,0.44004681,2818.4,2818.2,0.1355158]
[1740299239607,0.06419807,2818.3,2818.2,0.1355158]
[1740299240669,0.35574069,2818.3,2818.2,0.1355158]
[1740299254417,1.14234069,2818.3,2818.2,0.1355158]
[1740299255641,4.69057069,2818.3,2818.2,0.1355158]
[1740299255941,5.15962776,2818.3,2818.2,0.1355158]
[1740299256295,8.4041777,2818.3,2818.2,0.1355158]
[1740299256921,10.30069858,2818.3,2818.2,0.1355158]
[1740299257122,10.85069858,2818.3,2818.2,0.1355158]
[1740299258599,13.85069858,2818.3,2818.2,5.8e-06]
[1740299258926,14.57217222,2818.3,2818.2,5.8e-06]
[1740299260788,6.96439228,2818.3,2818.2,5.8e-06]
[1740299260993,3.96439228,2818.3,2818.2,5.8e-06]
[1740299261296,7.51262228,2818.3,2818.2,5.8e-06]
[1740299262127,3.96439228,2818.3,2818.2,5.8e-06]
[1740299262491,1.61139776,2818.3,2818.2,5.8e-06]
[1740299262716,0.35574069,2818.3,2818.2,5.8e-06]
[1740299263242,0.06419807,2818.3,2818.2,5.8e-06]
[1740299263387,0.7793,2818.5,2818.2,5.8e-06]
[1740299263589,0.0622419,2818.3,2818.2,5.8e-06]
[1740299263794,3.24454994,2818.7,2818.2,5.8e-06]
[1740299263995,0.75681499,2818.6,2818.2,5.8e-06]
[1740299264194,0.81905689,2818.6,2818.2,5.8e-06]
[1740299264396,0.81905689,2818.6,2818.3,3.54823]
[1740299264734,0.0622419,2818.6,2818.2,5.8e-06]
[1740299265023,0.7759,2818.8,2818.2,5.8e-06]
[1740299265322,0.062658,2818.5,2818.2,5.8e-06]
[1740299265706,4.32351,2818.8,2818.2,5.8e-06]
[1740299265918,0.062658,2818.4,2818.2,5.8e-06]
[1740299266096,4.32351,2818.8,2818.2,5.8e-06]
[1740299266529,0.7759,2818.8,2818.2,5.8e-06]
[1740299266723,0.062658,2818.7,2818.2,5.8e-06]
[1740299271714,0.7759,2819.0,2818.5,3.54788]
[1740299271913,0.06098851,2818.9,2818.5,3.54788]
[1740299273714,0.06098851,2818.9,2818.3,4.36376]
[1740299273922,0.06098851,2818.9,2818.4,3.54809]
[1740299274356,0.06098851,2818.9,2818.5,3.54798]
[1740299277952,0.06098851,2818.9,2818.3,4.36371]
[1740299278243,0.06098851,2818.9,2818.3,4.86967091]
[1740299278423,0.06098851,2818.9,2818.4,3.54804]
[1740299281221,0.06098851,2818.9,2818.3,4.86967091]
[1740299281422,0.06098851,2818.9,2818.5,3.54795]
[1740299282132,0.06098851,2818.9,2818.3,4.86967091]
[1740299282328,0.06098851,2818.9,2818.4,3.54806]
[1740299282535,3.54774,2818.7,2818.2,5.8e-06]
[1740299282734,3.54773,2818.7,2818.2,5.8e-06]
[1740299282952,0.7568,2818.6,2818.2,5.8e-06]
[1740299283153,0.81778851,2818.6,2818.2,5.8e-06]
[1740299284960,1.60910036,2818.6,2818.2,5.8e-06]
[1740299285163,4.31013,2818.3,2818.2,5.8e-06]
[1740299285340,7.31013,2818.3,2818.2,5.8e-06]
[1740299285530,7.37132223,2818.3,2818.2,5.8e-06]
[1740299286548,7.31013,2818.3,2818.2,5.8e-06]
[1740299286754,8.91006908,2818.3,2818.2,5.8e-06]
[1740299286939,8.9710236,2818.3,2818.2,5.8e-06]
[1740299287129,8.91006908,2818.3,2818.2,5.8e-06]
[1740299287663,8.9710236,2818.3,2818.2,5.8e-06]
[1740299287882,5.4227936,2818.3,2818.2,5.8e-06]
[1740299288041,0.82285452,2818.3,2818.2,5.8e-06]
[1740299288431,4.37108452,2818.3,2818.2,5.8e-06]
[1740299289260,4.92108452,2818.3,2818.2,5.8e-06]
[1740299289459,4.37108452,2818.3,2818.2,5.8e-06]
[1740299289766,0.82285452,2818.3,2818.2,5.8e-06]
[1740299290059,2.12888205,2818.3,2818.2,5.8e-06]
[1740299290453,5.67711205,2818.3,2818.2,5.8e-06]
[1740299291462,2.12888205,2818.3,2818.2,5.8e-06]
[1740299291668,5.67711205,2818.3,2818.2,5.8e-06]
[1740299293061,1.36698205,2818.3,2818.2,5.8e-06]
[1740299293250,0.06095452,2818.3,2818.2,5.8e-06]
[1740299293451,4.37108452,2818.3,2818.2,5.8e-06]
[1740299293655,4.31013,2818.3,2818.2,5.8e-06]
[1740299293968,7.61325462,2818.3,2818.2,5.8e-06]
[1740299294173,4.06502462,2818.3,2818.2,5.8e-06]
[1740299294336,8.67458008,2818.3,2818.2,5.8e-06]
[1740299295236,1.11990014,2818.3,2818.2,5.8e-06]
[1740299295431,0.05857468,2818.3,2818.2,5.8e-06]
[1740299295738,0.05857468,2818.3,2818.2,4.3596658]
[1740299296066,0.05859168,2818.3,2818.2,4.3596658]
[1740299296265,1.47553838,2818.9,2818.3,3.54821]
[1740299296471,0.7619,2818.9,2818.3,3.54821]
[1740299296766,3.7619,2818.9,2818.3,7.09637]
[1740299297068,4.88843149,2818.9,2818.2,0.8113058]
[1740299297270,4.88843149,2818.9,2818.2,4.3596258]
[1740299297447,4.88843149,2818.9,2818.3,3.54822]
[1740299297973,8.43593149,2818.9,2818.3,3.54822]
[1740299298466,4.88843149,2818.9,2818.3,3.54822]
[1740299298666,4.88843149,2818.9,2818.4,3.5481]
[1740299298872,4.88843149,2818.9,2818.3,3.54819]
[1740299300275,0.7619,2818.9,2818.2,0.8113058]
[1740299300985,8.3143127,2819.1,2818.2,0.8113058]
[1740299301199,8.3143127,2819.1,2818.4,3.54802]
[1740299303077,0.05644704,2819.0,2818.4,3.54802]
[1740299304457,3.60384704,2819.0,2818.4,3.54802]
[1740299304774,1.19181597,2818.9,2818.4,3.54802]
[1740299305473,0.05644704,2818.8,2818.4,3.54802]
[1740299305778,0.05644704,2818.8,2818.3,7.09638]
[1740299306276,0.05644704,2818.8,2818.3,3.54816]
[1740299306572,0.05644704,2818.8,2818.3,3.54814]
[1740299306904,0.05644704,2818.8,2818.4,3.54806]
[1740299307254,11.8616427,2819.1,2818.4,3.54806]
[1740299307453,0.056481,2818.7,2818.4,3.54806]
[1740299307643,8.3143127,2819.1,2818.5,3.54798]
[1740299307845,0.056481,2818.6,2818.5,3.54798]
[1740299308044,8.3143127,2819.1,2818.5,3.54798]
[1740299308266,0.056481,2818.6,2818.5,3.54798]
[1740299308455,8.3143127,2819.1,2818.5,3.54798]
[1740299308776,0.8237,2819.1,2818.9,3.54742]
[1740299309078,0.05467992,2819.0,2818.9,3.54743]
[1740299309448,0.05467992,2819.0,2818.7,0.7673]
[1740299309449,0.7676,2819.4,2818.7,0.7673]
[1740299309644,0.7676,2819.6,2819.2,3.54698]
[1740299309846,0.7676,2819.6,2819.2,4.31428]
[1740299310046,0.7676,2819.8,2819.3,3.54689]
[1740299310241,1.68659608,2819.8,2819.4,3.54673]
[1740299310449,0.7676,2819.8,2819.5,3.54661]
[1740299310768,0.7676,2819.8,2819.2,0.7673]
[1740299310769,4.31368,2820.1,2819.2,0.7673]
[1740299310952,4.31368,2820.1,2819.4,3.54677]
[1740299311160,0.7676,2820.1,2819.2,0.7673]
[1740299311546,0.7676,2820.1,2819.3,0.7673]
[1740299311950,3.54672,2819.5,2818.9,4.3147]
[1740299312158,3.54654,2819.7,2819.1,3.54715]
[1740299312361,7.09313,2819.7,2819.1,3.54715]
[1740299312677,3.54664,2819.6,2819.1,3.54715]
[1740299314081,4.314,2819.8,2819.1,3.54715]
[1740299314271,4.314,2819.8,2819.3,3.54696]
[1740299314468,0.7676,2819.8,2819.2,0.354715]
[1740299314676,0.7676,2819.8,2819.3,3.54694]
[1740299314880,0.7676,2819.8,2819.4,0.7673]
[1740299315083,0.7676,2819.8,2819.1,0.7673]
[1740299315388,3.54715,2819.2,2818.8,0.7673]
[1740299315588,3.54724,2819.1,2818.8,0.7673]
[1740299315775,3.54732,2819.1,2818.8,0.7673]
[1740299315950,3.54732,2819.1,2818.6,0.7673]
[1740299316146,3.54715,2819.2,2818.6,4.31514]
[1740299316374,3.54723,2819.1,2818.6,0.7673]
[1740299316552,3.54715,2819.2,2818.6,0.7673]
[1740299316553,3.54715,2819.2,2818.6,4.81625933]
[1740299316869,3.54726,2819.1,2818.6,1.26840933]
[1740299317071,0.7676,2819.3,2818.6,0.7673]
[1740299317271,0.7676,2819.3,2818.4,0.7673]
[1740299317272,3.54759,2818.9,2818.4,0.7673]
[1740299317479,0.7676,2818.8,2818.3,3.54812]
[1740299317665,0.7676,2818.8,2818.4,3.5481]
[1740299317875,3.54742,2819.0,2818.4,0.54485969]
[1740299318074,0.05597225,2818.7,2818.4,0.54485969]
[1740299318282,0.7676,2819.1,2818.5,3.54791]
[1740299318456,0.7676,2819.1,2818.6,3.54785]
[1740299318658,4.31485,2819.1,2818.5,3.54791]
[1740299319190,4.21164456,2819.3,2818.7,0.7923]
[1740299319191,1.0544,2819.3,2818.7,0.7923]
[1740299319485,0.7894,2819.3,2818.9,3.54741]
[1740299319800,0.71410049,2819.4,2819.0,3.54728]
[1740299320007,3.54688,2819.4,2818.7,0.7923]
[1740299320163,3.54699,2819.3,2818.7,0.7923]
[1740299320878,3.54688,2819.4,2818.8,3.5476]
[1740299321301,3.54688,2819.4,2818.9,3.54747]
[1740299321709,4.40754968,2819.4,2818.8,3.54753]
[1740299322586,4.40754968,2819.4,2818.8,7.09506]
[1740299322894,4.40754968,2819.4,2818.8,3.54753]
[1740299323395,4.40754968,2819.4,2818.8,3.54752]
[1740299323600,0.86066968,2819.4,2818.8,3.54752]
[1740299323888,0.86066968,2819.4,2818.9,3.54738]
[1740299324265,4.27043676,2819.6,2819.1,3.54722]
[1740299324699,4.27043676,2819.6,2818.9,3.54745]
[1740299324899,4.27043676,2819.6,2819.0,3.54731]
[1740299326075,3.54673,2819.5,2819.0,3.54731]
[1740299326275,4.27043676,2819.6,2819.0,7.09459]
[1740299326500,0.83421867,2819.5,2819.0,7.09459]
[1740299326675,0.83421867,2819.5,2819.1,3.54722]
[1740299326876,4.07174994,2819.7,2818.7,0.7923]
[1740299327082,0.8272,2819.7,2819.2,4.34309]
[1740299327694,4.37374,2819.7,2819.2,4.34309]
[1740299327886,5.2088926,2819.7,2819.2,0.796]
[1740299328090,3.54663,2819.6,2819.2,0.796]
[1740299328593,8.45339254,2819.7,2819.1,3.54716]
[1740299329998,7.62619254,2819.7,2819.0,4.34328]
[1740299330211,7.62619254,2819.7,2819.2,3.54708]
[1740299332111,7.62619254,2819.7,2819.1,3.5472]
[1740299332317,1.23010582,2819.6,2819.1,3.5472]
[1740299332622,1.23010582,2819.6,2818.4,3.24454994]
[1740299332623,3.5482,2818.4,2818.2,5.8e-06]
[1740299332780,3.90305,2818.3,2818.2,5.8e-06]
[1740299332978,5.69015366,2818.3,2818.2,5.8e-06]
[1740299333210,5.74648287,2818.3,2818.2,5.8e-06]
[1740299333414,4.78657921,2818.3,2818.2,5.8e-06]
[1740299333999,8.33657921,2818.3,2818.2,5.8e-06]
[1740299334198,10.92800375,2818.3,2818.2,5.8e-06]
[1740299334805,9.96810009,2818.3,2818.2,5.8e-06]
[1740299335220,10.96146883,2818.3,2818.2,5.8e-06]
[1740299335400,9.96810009,2818.3,2818.2,5.8e-06]
[1740299336713,10.68974187,2818.3,2818.2,5.8e-06]
[1740299336900,10.40474187,2818.3,2818.2,5.8e-06]
[1740299338209,10.13974187,2818.3,2818.2,5.8e-06]
[1740299338410,10.40474187,2818.3,2818.2,5.8e-06]
[1740299338614,8.77322099,2818.3,2818.2,5.8e-06]
[1740299339134,9.03736233,2818.3,2818.2,5.8e-06]
[1740299339921,3.54874,2817.9,2817.5,0.6960058]
[1740299340127,3.54904,2817.7,2817.5,0.6960058]
[1740299340345,3.54904,2817.7,2817.2,0.69589329]
[1740299340551,7.09814,2817.7,2817.2,0.69589329]
[1740299340738,0.05362518,2817.6,2817.2,0.69589329]
[1740299340938,0.05362518,2817.6,2817.2,1.12045962]
[1740299341247,3.54924,2817.5,2817.2,1.12045962]
[1740299341403,3.60282518,2817.6,2817.2,0.69589329]
[1740299342458,3.54928,2817.5,2817.2,0.69589329]
[1740299342648,3.54937,2817.4,2817.2,0.69589329]
[1740299342830,3.60288453,2817.4,2817.2,0.69589329]
[1740299344160,3.54949,2817.3,2817.2,0.69589329]
[1740299344526,3.54977,2817.1,2816.9,0.7872]
[1740299345033,3.60329096,2817.0,2816.9,0.7872]
[1740299345235,3.54906,2817.7,2817.0,3.54977]
[1740299345433,4.23425304,2817.9,2816.9,0.7872]
[1740299345434,3.54935,2817.5,2816.9,0.7872]
[1740299345634,3.54935,2817.5,2816.9,4.33718]
[1740299346039,3.54914,2817.6,2817.0,3.54977]
[1740299346380,3.54928,2817.5,2817.0,3.54977]
[1740299346989,7.09813,2817.7,2817.0,7.09954]
[1740299347155,3.54903,2817.7,2817.0,3.54977]
[1740299348536,3.54925,2817.5,2817.0,3.54977]
[1740299348856,3.54925,2817.5,2817.0,4.4173483]
[1740299349371,3.54925,2817.5,2817.0,0.8675783]
[1740299349534,3.54925,2817.5,2816.9,0.7872]
[1740299349735,3.54925,2817.5,2816.9,4.33711]
[1740299350136,7.09859,2817.5,2816.9,4.33711]
[1740299350465,3.54925,2817.5,2816.9,4.33711]
[1740299352273,3.54925,2817.5,2817.0,3.54987]
[1740299352567,8.42471082,2818.0,2817.2,0.7872]
[1740299352767,3.54887,2817.8,2817.2,5.03261329]
[1740299353266,0.04922107,2817.7,2817.3,3.54948]
[1740299353475,0.04922107,2817.7,2817.2,5.03261329]
[1740299353640,3.54887,2817.8,2817.3,0.50326133]
[1740299353967,0.04930624,2817.6,2817.4,0.7872]
[1740299354173,3.54887,2817.8,2817.4,0.7872]
[1740299354376,0.04930624,2817.5,2817.4,0.7872]
[1740299354974,3.54887,2817.8,2817.4,0.7872]
[1740299355567,0.04930624,2817.7,2817.4,4.33656]
[1740299355781,3.0,2817.9,2817.4,4.33656]
[1740299356070,0.04930624,2817.8,2817.4,4.33656]
[1740299357067,0.04930624,2817.8,2817.4,4.33648]
[1740299357274,0.04930624,2817.8,2817.5,4.33643]
[1740299358534,0.04930624,2817.8,2817.5,0.7872]
[1740299358740,0.04930624,2817.8,2817.6,7.09815]
[1740299358969,3.54843,2818.2,2817.6,3.54904]
[1740299359267,3.24454994,2818.4,2817.5,0.7872]
[1740299359268,3.54864,2818.0,2817.5,0.7872]
[1740299359695,3.54831,2818.3,2817.5,0.7872]
[1740299359889,0.04974907,2817.9,2817.5,0.7872]
[1740299360092,7.09782,2817.8,2817.5,0.7872]
[1740299360261,3.59860907,2817.8,2817.5,0.7872]
[1740299361491,3.54911,2817.6,2817.5,0.7872]
[1740299362090,3.59885907,2817.6,2817.5,0.7872]
[1740299362297,3.59885907,2817.6,2817.2,0.69589329]
[1740299362298,3.54949,2817.3,2817.2,0.7831]
[1740299362590,3.55,2816.9,2816.8,0.7831]
[1740299363318,3.599715,2816.9,2816.8,0.7831]
[1740299369014,3.599715,2816.9,2816.1,0.69589329]
[1740299369015,3.55088,2816.2,2816.1,0.69589329]
[1740299369307,0.04858218,2816.2,2816.1,0.69589329]
[1740299369628,3.59946218,2816.2,2816.1,1.46779329]
[1740299369830,0.04858218,2816.2,2816.1,1.46779329]
[1740299370007,3.24454994,2816.8,2816.1,1.46779329]
[1740299370331,3.55088,2816.2,2816.1,1.46779329]
[1740299370538,3.55088,2816.2,2816.1,0.7719]
[1740299370711,0.0479176,2816.2,2816.1,0.7719]
[1740299372326,0.0479176,2816.2,2816.1,4.32291]
[1740299372702,3.55042,2816.6,2816.1,0.7719]
[1740299373033,3.55058,2816.5,2816.1,0.7719]
[1740299373229,0.047875,2816.4,2816.1,0.7719]
[1740299373636,3.5503,2816.7,2816.1,0.7719]
[1740299373821,0.047875,2816.6,2816.1,4.32281]
[1740299374231,0.047875,2816.6,2816.3,3.55067]
[1740299374438,6.79474994,2816.8,2816.2,3.55076]
[1740299374645,0.047875,2816.7,2816.2,3.55076]
[1740299375145,0.047875,2816.7,2816.3,3.55067]
[1740299375541,3.24454994,2816.8,2816.3,3.55067]
[1740299375726,0.047875,2816.6,2816.3,3.55067]
[1740299375924,7.55976994,2817.1,2816.4,4.32251]
[1740299376250,3.55009,2816.9,2816.4,0.7719]
[1740299376544,3.55012,2816.8,2816.4,0.7719]
[1740299376753,3.55032,2816.7,2816.4,0.7719]
[1740299377051,0.047875,2816.7,2816.4,0.7719]
[1740299377343,3.55026,2816.7,2816.4,0.7719]
[1740299377643,0.04797725,2816.6,2816.4,0.7719]
[1740299377848,3.5505,2816.5,2816.1,0.69589329]
[1740299378014,3.59857464,2816.4,2816.1,1.46779329]
[1740299378443,0.04793464,2816.4,2816.1,1.46779329]
[1740299378630,4.31235,2816.6,2816.1,1.46779329]
[1740299378831,0.04793464,2816.5,2816.1,1.46779329]
[1740299379238,0.04793464,2816.5,2816.2,3.55086]
[1740299379456,3.24454994,2816.8,2816.2,3.55086]
[1740299379752,0.04793464,2816.4,2816.2,3.55086]
[1740299380047,0.04793464,2816.3,2816.1,1.96968262]
[1740299380231,3.55039,2816.6,2816.1,1.96968262]
[1740299380431,0.04793464,2816.5,2816.1,1.96968262]
[1740299380935,0.04793464,2816.5,2816.1,5.52068262]
[1740299381957,0.04793464,2816.5,2816.2,3.55085]
[1740299382172,0.04793464,2816.5,2816.2,4.45800326]
[1740299382463,0.04793464,2816.4,2816.3,3.55073]
[1740299382859,6.79472994,2816.8,2816.3,3.55073]
[1740299383045,0.04793464,2816.4,2816.3,3.55073]
[1740299383245,3.55018,2816.8,2816.3,3.55073]
[1740299383570,0.04793464,2816.7,2816.3,3.55073]
[1740299383860,4.03664994,2817.1,2816.6,3.55025]
[1740299384161,11.13630994,2817.1,2816.5,4.3323]
[1740299384361,3.54988,2817.0,2816.5,0.7818]
[1740299385235,3.55002,2816.9,2816.5,0.7818]
[1740299385436,3.55012,2816.8,2816.5,0.7818]
[1740299385756,3.55008,2816.9,2816.5,0.7818]
[1740299385956,3.55013,2816.8,2816.5,0.7818]
[1740299386138,3.55013,2816.8,2816.2,0.7818]
[1740299386337,3.55031,2816.7,2816.2,0.7818]
[1740299386772,3.55038,2816.6,2816.2,0.7818]
[1740299387864,3.55001,2816.9,2816.4,3.55062]
[1740299388437,3.54988,2817.0,2816.3,3.55075]
[1740299388772,3.54988,2817.0,2816.4,3.55055]
[1740299389067,7.58642994,2817.1,2816.2,0.7818]
[1740299389255,3.54989,2817.0,2816.5,3.55038]
[1740299389881,3.55002,2816.9,2816.4,3.55062]
[1740299390082,7.58642994,2817.1,2816.5,0.7818]
[1740299390283,11.13627994,2817.1,2816.5,4.33225]
[1740299390466,7.58642994,2817.1,2816.5,4.33225]
[1740299390970,4.89370596,2817.1,2816.5,0.7818]
[1740299391155,4.89370596,2817.1,2816.1,7.79777329]
[1740299391156,3.55036,2816.7,2816.3,0.7818]
[1740299391361,3.55047,2816.6,2816.3,0.7818]
[1740299391882,3.55052,2816.5,2816.1,0.69589329]
[1740299392775,7.89303,2816.6,2816.1,0.69589329]
[1740299392972,0.0480369,2816.4,2816.1,5.10481562]
[1740299393175,3.55033,2816.7,2816.2,4.3326]
[1740299393357,0.0480369,2816.3,2816.2,4.3326]
[1740299393558,3.55033,2816.7,2816.2,3.5508]
[1740299393759,0.04789204,2816.3,2816.2,3.5508]
[1740299393960,3.55033,2816.7,2816.2,4.41636156]
[1740299394181,0.265,2817.0,2816.1,0.69589329]
[1740299394182,0.04789204,2816.3,2816.1,0.69589329]
[1740299394355,3.55055,2816.5,2816.1,0.69589329]
[1740299394555,0.04789204,2816.2,2816.1,0.69589329]
[1740299394757,7.10114,2816.5,2816.1,0.69589329]
[1740299395286,0.04789204,2816.4,2816.1,0.69589329]
[1740299395665,3.59852204,2816.4,2816.1,0.69589329]
[1740299396071,0.04789204,2816.4,2816.1,0.69589329]
[1740299396274,0.04789204,2816.4,2816.1,1.47570962]
[1740299396480,3.55049,2816.6,2816.1,1.47570962]
[1740299396679,0.04789204,2816.3,2816.1,1.47570962]
[1740299396988,3.55049,2816.6,2816.1,1.47570962]
[1740299397156,0.04789204,2816.2,2816.1,1.47570962]
[1740299397362,3.55049,2816.6,2816.1,1.47570962]
[1740299397994,0.04789204,2816.5,2816.1,1.47570962]
[1740299398562,0.04789204,2816.5,2816.1,5.02671962]
[1740299398985,0.04789204,2816.5,2816.4,3.55063]
[1740299399364,3.55,2816.9,2816.3,3.55069]
[1740299399892,3.59794831,2816.8,2816.3,3.55069]
[1740299400577,0.04779831,2816.8,2816.4,3.55062]
[1740299400999,0.04779831,2816.8,2816.5,3.55043]
[1740299401197,0.04779831,2816.8,2816.3,3.55069]
[1740299401398,0.04779831,2816.8,2816.4,3.55062]
[1740299401603,0.04779831,2816.8,2816.3,4.38071253]
[1740299401922,3.59793831,2816.8,2816.3,4.38071253]
[1740299402266,0.04779831,2816.8,2816.4,3.5506]
[1740299402565,0.04779831,2816.8,2816.1,0.69589329]
[1740299402566,3.55066,2816.4,2816.1,0.69589329]
[1740299402996,3.55054,2816.5,2816.1,0.69589329]
[1740299403928,3.55054,2816.5,2816.0,3.55108]
[1740299404220,3.55069,2816.4,2815.9,3.55119]
[1740299404365,3.55069,2816.4,2815.9,4.72209765]
[1740299405805,3.55058,2816.5,2815.9,4.72209765]
[1740299406219,3.55058,2816.5,2815.9,8.27328765]
[1740299406529,3.55038,2816.6,2816.1,3.55092]
[1740299408029,6.79480994,2816.7,2816.1,3.55091]
[1740299408593,3.24454994,2816.7,2816.1,3.55091]
[1740299408794,3.55038,2816.6,2816.1,3.55091]
[1740299410323,3.24454994,2816.7,2815.9,4.72208765]
[1740299410528,3.5505,2816.5,2816.0,3.55105]
[1740299410724,3.5505,2816.5,2816.0,4.44795309]
[1740299410934,3.5505,2816.5,2816.0,0.89690309]
[1740299411091,3.55071,2816.4,2816.0,0.89690309]
[1740299411724,6.79487994,2816.7,2816.0,4.44802309]
[1740299411925,3.55053,2816.5,2815.9,4.72212765]
[1740299412738,3.24454994,2816.7,2815.9,4.72212765]
[1740299412933,7.10112,2816.5,2815.9,4.72209765]
[1740299413132,3.55064,2816.4,2815.9,4.72209765]
[1740299413454,3.55135,2815.9,2815.5,0.69589329]
[1740299414426,3.55105,2816.1,2815.5,0.69589329]
[1740299414427,3.55105,2816.1,2815.5,4.24758329]
[1740299414629,7.10213,2816.1,2815.5,4.24758329]
[1740299414822,3.55105,2816.1,2815.5,4.24758329]
[1740299415028,3.55105,2816.1,2815.5,1.49125281]
[1740299415353,3.5512,2816.0,2815.5,5.04300281]
[1740299415546,3.5512,2816.0,2815.5,4.24764329]
[1740299417434,0.04778124,2815.9,2815.5,0.69589329]
[1740299417648,0.04778124,2815.9,2815.5,4.24765329]
[1740299420654,0.04778124,2815.9,2815.6,3.5516]
[1740299420850,7.10188,2816.2,2815.6,3.5516]
[1740299421053,3.55116,2816.0,2815.5,4.24765329]
[1740299421486,0.047142,2815.9,2815.5,4.24765329]
[1740299421985,0.047142,2815.9,2815.5,0.69589329]
[1740299422190,0.047142,2815.9,2815.5,4.24763329]
[1740299422489,0.047142,2815.9,2815.5,7.79933329]
[1740299422691,0.047142,2815.9,2815.5,7.79926329]
[1740299422858,3.55102,2816.1,2815.5,4.24756329]
[1740299423053,0.047142,2816.0,2815.5,4.24756329]
[1740299423254,3.55092,2816.2,2815.6,3.55163]
[1740299423461,0.047142,2816.1,2815.7,3.5515]
[1740299424203,0.047142,2816.1,2815.8,0.7702]
[1740299425201,3.598172,2816.1,2815.8,0.7702]
[1740299425367,0.047142,2816.1,2815.8,0.7702]
[1740299425769,3.5509,2816.2,2815.8,0.7702]
[1740299426066,3.5509,2816.2,2815.6,3.55157]
[1740299426067,3.55123,2816.0,2815.6,0.7702]
[1740299426262,0.04715907,2815.9,2815.6,0.7702]
[1740299427906,3.55116,2816.0,2815.6,0.7702]
[1740299428066,0.04715907,2815.8,2815.6,0.7702]
[1740299428271,3.55104,2816.1,2815.6,0.7702]
[1740299428471,0.95494979,2816.0,2815.6,0.7702]
[1740299428890,0.04715907,2816.0,2815.6,0.7702]
[1740299429100,3.55101,2816.1,2815.6,4.32179]
[1740299429366,4.35784,2816.2,2815.6,4.32179]
[1740299429570,0.04715907,2816.0,2815.6,4.32179]
[1740299429793,4.35784,2816.2,2815.6,4.32179]
[1740299429994,0.04715907,2815.9,2815.6,4.32179]
[1740299430174,3.55103,2816.1,2815.6,4.32179]
[1740299430388,0.04715907,2815.8,2815.6,0.7702]
[1740299430711,3.55079,2816.3,2815.7,4.3217]
[1740299431011,3.55097,2816.2,2815.7,0.7702]
[1740299431211,0.73739723,2816.2,2815.7,0.7702]
[1740299431518,0.27221225,2816.4,2815.5,0.69589329]
[1740299431519,0.8069,2816.0,2815.5,0.69589329]
[1740299431894,0.8069,2816.0,2815.5,4.24765329]
[1740299434918,4.35805,2816.0,2815.5,4.24765329]
[1740299435387,0.8069,2816.0,2815.5,4.24765329]